Body Name,ONS SNAC ID,Pay Date,Transaction No,Amount �,Supplier Name,Company Registration No,Department,Account Name,CIPFA Service Reporting
Swale Borough Council,29UM,03/02/2016,1138535,1237.00,AECOM INFRASTRUCTURE & ENV UK LTD,880328                   ,PLANNING SERVICES,Fees And Services,Planning and Development Services
Swale Borough Council,29UM,03/02/2016,1138615,12604.00,AECOM INFRASTRUCTURE & ENV UK LTD,880328                   ,PLANNING SERVICES,Fees And Services,Planning and Development Services
Swale Borough Council,29UM,03/02/2016,1138575,76874.00,ARRIVA KENT AND SURREY LIMITED,                         ,PLANNING SERVICES,Payments in Year,Ledger/Suspense Codes
Swale Borough Council,29UM,03/02/2016,1138537,648.97,BLENWOOD LTD,4383277                  ,LEISURE & OPEN SPACES,Maintenance - Grounds,Cultural and Related Services
Swale Borough Council,29UM,03/02/2016,1138538,471.92,BLENWOOD LTD,4383277                  ,LEISURE & OPEN SPACES,Maintenance - Grounds,Environmental and Regulatory Services
Swale Borough Council,29UM,03/02/2016,1138540,938.78,BLENWOOD LTD,4383277                  ,LEISURE & OPEN SPACES,Swale In Bloom,Cultural and Related Services
Swale Borough Council,29UM,03/02/2016,1138746,1388.71,BLENWOOD LTD,4383277                  ,LEISURE & OPEN SPACES,Grounds Contract Variations,Cultural and Related Services
Swale Borough Council,29UM,03/02/2016,1138616,650.00,BLUE TOWN REMEMBERED,                         ,TOURISM & SPORTS DEVELOPMENT,Grants & Subscriptions,Cultural and Related Services
Swale Borough Council,29UM,03/02/2016,1138569,1890.00,BT DEVELOPMENTS,                         ,HOUSING SERVICES,B & B - Landlords Payments,Housing
Swale Borough Council,29UM,03/02/2016,1138703,460.20,CITY OF LONDON,                         ,MKIP ENVIRONMENTAL SERVICES,Sampling / Monitoring,Environmental and Regulatory Services
Swale Borough Council,29UM,03/02/2016,1138474,454.89,COMENSURA LTD,04085767                 ,HOUSING SERVICES,Agency/Contract Staff,Housing
Swale Borough Council,29UM,03/02/2016,1138474,1693.49,COMENSURA LTD,04085767                 ,MKIP LEGAL SERVICES,Agency/Contract Staff,Internal Trading Cost Centres
Swale Borough Council,29UM,03/02/2016,1138474,1572.85,COMENSURA LTD,04085767                 ,MKIP LEGAL SERVICES,Agency/Contract Staff,Internal Trading Cost Centres
Swale Borough Council,29UM,03/02/2016,1138602,470.31,COMENSURA LTD,04085767                 ,HOUSING SERVICES,Agency/Contract Staff,Housing
Swale Borough Council,29UM,03/02/2016,1138602,277.16,COMENSURA LTD,04085767                 ,LEISURE & OPEN SPACES,Agency/Contract Staff,Internal Trading Cost Centres
Swale Borough Council,29UM,03/02/2016,1138602,1572.85,COMENSURA LTD,04085767                 ,MKIP LEGAL SERVICES,Agency/Contract Staff,Internal Trading Cost Centres
Swale Borough Council,29UM,03/02/2016,1138602,1693.48,COMENSURA LTD,04085767                 ,MKIP LEGAL SERVICES,Agency/Contract Staff,Internal Trading Cost Centres
Swale Borough Council,29UM,03/02/2016,1138602,412.87,COMENSURA LTD,04085767                 ,MKIP LEGAL SERVICES,Agency/Contract Staff,Internal Trading Cost Centres
Swale Borough Council,29UM,03/02/2016,1138602,282.49,COMENSURA LTD,04085767                 ,MKIP LEGAL SERVICES,Agency/Contract Staff,Internal Trading Cost Centres
Swale Borough Council,29UM,03/02/2016,1138602,325.95,COMENSURA LTD,04085767                 ,MKIP LEGAL SERVICES,Agency/Contract Staff,Internal Trading Cost Centres
Swale Borough Council,29UM,03/02/2016,1138602,195.57,COMENSURA LTD,04085767                 ,MKIP LEGAL SERVICES,Agency/Contract Staff,Internal Trading Cost Centres
Swale Borough Council,29UM,03/02/2016,1138602,173.84,COMENSURA LTD,04085767                 ,MKIP LEGAL SERVICES,Agency/Contract Staff,Internal Trading Cost Centres
Swale Borough Council,29UM,03/02/2016,1138602,86.91,COMENSURA LTD,04085767                 ,MKIP LEGAL SERVICES,Agency/Contract Staff,Internal Trading Cost Centres
Swale Borough Council,29UM,03/02/2016,1138602,130.37,COMENSURA LTD,04085767                 ,MKIP LEGAL SERVICES,Agency/Contract Staff,Internal Trading Cost Centres
Swale Borough Council,29UM,03/02/2016,1138602,273.54,COMENSURA LTD,04085767                 ,HOUSING SERVICES,Agency/Contract Staff,Housing
Swale Borough Council,29UM,03/02/2016,1138693,251.30,CONTRACT SECURITY SERVICES,2461362                  ,EXCHEQUER,Cash Security,Internal Trading Cost Centres
Swale Borough Council,29UM,03/02/2016,1138693,3319.68,CONTRACT SECURITY SERVICES,2461362                  ,CAR PARKS,Cash Security,Highway and Transport Services
Swale Borough Council,29UM,03/02/2016,1138466,350.00,CREDITSAFE BUSINESS SOLUTIONS LTD,03836192                 ,FINANCIAL SERVICES,Fees And Services,Internal Trading Cost Centres
Swale Borough Council,29UM,03/02/2016,1138546,255.00,EVAC+CHAIR INTERNATIONAL LTD,3593826                  ,PROPERTY SERVICES,Service Contracts,Corporate & Democratic Core
Swale Borough Council,29UM,03/02/2016,1138692,895.00,HMRC SHIPLEY,                         ,HOUSING SERVICES,Fees And Services,Housing
Swale Borough Council,29UM,03/02/2016,1138659,5442.15,IESE TRANSFORMATION LIMITED,08884826                 ,CHIEF EXECUTIVE,Consultancy/Specialist Advice,Corporate & Democratic Core
Swale Borough Council,29UM,03/02/2016,1138553,768.00,INFORM CPI LTD,                         ,REVENUE SERVICES,NNDR Additional Rateable Values,Central Services to the Public
Swale Borough Council,29UM,03/02/2016,1138789,6660.00,J & D SYSTEMS,                         ,HOUSING SERVICES,Housing Renovation Grants,Not used in this Structure
Swale Borough Council,29UM,03/02/2016,1138790,593.55,J & D SYSTEMS,                         ,HOUSING SERVICES,Housing Renovation Grants,Not used in this Structure
Swale Borough Council,29UM,03/02/2016,1138778,4000.00,KENT COUNTY CRICKET CLUB LIMITED,28955R                   ,TOURISM & SPORTS DEVELOPMENT,Grants & Subscriptions,Cultural and Related Services
Swale Borough Council,29UM,03/02/2016,1138517,384.38,KENT INVICTA CHAMBER OF COMMERCE,2794615                  ,ECONOMIC DEVELOPMENT,Fees And Services,Planning and Development Services
Swale Borough Council,29UM,03/02/2016,1138576,738.75,KENT INVICTA CHAMBER OF COMMERCE,2794615                  ,ECONOMIC DEVELOPMENT,Fees And Services,Planning and Development Services
Swale Borough Council,29UM,03/02/2016,1138451,1374.57,LLOYDS BANK - (DT),                         ,FINANCIAL SERVICES,Bank Charges,Corporate & Democratic Core
Swale Borough Council,29UM,03/02/2016,1138719,462.74,LYRECO UK LTD,                         ,PROPERTY SERVICES,Paper,Internal Trading Cost Centres
Swale Borough Council,29UM,03/02/2016,1138734,439.16,LYRECO UK LTD,                         ,PROPERTY SERVICES,Paper,Internal Trading Cost Centres
Swale Borough Council,29UM,03/02/2016,1138031,50370.00,MAIDSTONE BOROUGH COUNCIL,                         ,ICT,Support Service Recharge (Revenue),Internal Trading Cost Centres
Swale Borough Council,29UM,03/02/2016,1138113,100835.00,MAIDSTONE BOROUGH COUNCIL,                         ,ICT,Support Service Recharge (Revenue),Internal Trading Cost Centres
Swale Borough Council,29UM,03/02/2016,1138562,260535.00,MAIDSTONE BOROUGH COUNCIL,                         ,PLANNING SERVICES,MKIP Charges for Planning,Internal Trading Cost Centres
Swale Borough Council,29UM,03/02/2016,1138619,1427.40,MPS MARKETING SERVICES LIMITED,6360656                  ,DEMOCRATIC & ELECTORAL SERVICES,Fees And Services,Central Services to the Public
Swale Borough Council,29UM,03/02/2016,1138665,750.00,REDACTED PERSONAL INFORMATION,                         ,ENVIRONMENTAL RESPONSE TEAM,Legal Fees,Internal Trading Cost Centres
Swale Borough Council,29UM,03/02/2016,1138666,350.00,REDACTED PERSONAL INFORMATION,                         ,ENVIRONMENTAL RESPONSE TEAM,Legal Fees,Internal Trading Cost Centres
Swale Borough Council,29UM,03/02/2016,1138707,1575.00,MR J W GATES,                         ,LEISURE & OPEN SPACES,Maintenance - Grounds,Cultural and Related Services
Swale Borough Council,29UM,03/02/2016,1138707,52.99,MR J W GATES,                         ,LEISURE & OPEN SPACES,Maintenance - Grounds,Cultural and Related Services
Swale Borough Council,29UM,03/02/2016,1138698,1475.90,NEWAUTO LTD T/A MOGOUK,3051444                  ,SERVICE DELIVERY,Equipment Purchase,Environmental and Regulatory Services
Swale Borough Council,29UM,03/02/2016,1138563,536.54,NPOWER,3432100                  ,COMMUNITY SAFETY,Electricity,Cultural and Related Services
Swale Borough Council,29UM,03/02/2016,1138267,9.50,O2 (UK) LTD,1743099                  ,SUSTAINABLE SHEPPEY,Cellphone,Environmental and Regulatory Services
Swale Borough Council,29UM,03/02/2016,1138267,23.36,O2 (UK) LTD,1743099                  ,COMMUNITY SAFETY,Cellphone,Planning and Development Services
Swale Borough Council,29UM,03/02/2016,1138267,8.00,O2 (UK) LTD,1743099                  ,COMMUNITY SAFETY,Cellphone,Planning and Development Services
Swale Borough Council,29UM,03/02/2016,1138267,33.00,O2 (UK) LTD,1743099                  ,COMMUNITY SAFETY,Cellphone,Environmental and Regulatory Services
Swale Borough Council,29UM,03/02/2016,1138267,9.50,O2 (UK) LTD,1743099                  ,POLICY,Cellphone,Corporate & Democratic Core
Swale Borough Council,29UM,03/02/2016,1138267,16.00,O2 (UK) LTD,1743099                  ,PLANNING SERVICES,Cellphone,Planning and Development Services
Swale Borough Council,29UM,03/02/2016,1138267,10.00,O2 (UK) LTD,1743099                  ,PLANNING SERVICES,Cellphone,Planning and Development Services
Swale Borough Council,29UM,03/02/2016,1138267,9.50,O2 (UK) LTD,1743099                  ,EMERGENCY PLANNING,Cellphone,Central Services to the Public
Swale Borough Council,29UM,03/02/2016,1138267,30.42,O2 (UK) LTD,1743099                  ,SERVICE DELIVERY,Cellphone,Cultural and Related Services
Swale Borough Council,29UM,03/02/2016,1138267,36.81,O2 (UK) LTD,1743099                  ,HOUSING SERVICES,Cellphone,Housing
Swale Borough Council,29UM,03/02/2016,1138267,24.67,O2 (UK) LTD,1743099                  ,REVENUE SERVICES,Cellphone,Housing
Swale Borough Council,29UM,03/02/2016,1138267,7.00,O2 (UK) LTD,1743099                  ,HOUSING SERVICES,Cellphone,Housing
Swale Borough Council,29UM,03/02/2016,1138267,48.50,O2 (UK) LTD,1743099                  ,PROPERTY SERVICES,Cellphone,Internal Trading Cost Centres
Swale Borough Council,29UM,03/02/2016,1138267,7.00,O2 (UK) LTD,1743099                  ,ECONOMY & COMMUNITIES,Cellphone,Internal Trading Cost Centres
Swale Borough Council,29UM,03/02/2016,1138267,9.50,O2 (UK) LTD,1743099                  ,DIRECTOR OF CORPORATE SERVICES,Cellphone,Internal Trading Cost Centres
Swale Borough Council,29UM,03/02/2016,1138267,7.00,O2 (UK) LTD,1743099                  ,DEMOCRATIC & ELECTORAL SERVICES,Cellphone,Internal Trading Cost Centres
Swale Borough Council,29UM,03/02/2016,1138267,51.00,O2 (UK) LTD,1743099                  ,MKIP ENVIRONMENTAL SERVICES,Cellphone,Internal Trading Cost Centres
Swale Borough Council,29UM,03/02/2016,1138267,115.00,O2 (UK) LTD,1743099                  ,CONTRACT & PROCUREMENT,Cellphone,Internal Trading Cost Centres
Swale Borough Council,29UM,03/02/2016,1138267,19.00,O2 (UK) LTD,1743099                  ,SERVICE DELIVERY,Cellphone,Internal Trading Cost Centres
Swale Borough Council,29UM,03/02/2016,1138267,33.00,O2 (UK) LTD,1743099                  ,ECONOMIC DEVELOPMENT,Cellphone,Internal Trading Cost Centres
Swale Borough Council,29UM,03/02/2016,1138267,19.49,O2 (UK) LTD,1743099                  ,TOURISM & SPORTS DEVELOPMENT,Cellphone,Internal Trading Cost Centres
Swale Borough Council,29UM,03/02/2016,1138267,13.00,O2 (UK) LTD,1743099                  ,COMMISSIONING & CUSTOMER CONTACT,Cellphone,Internal Trading Cost Centres
Swale Borough Council,29UM,03/02/2016,1138267,79.00,O2 (UK) LTD,1743099                  ,ENVIRONMENTAL RESPONSE TEAM,Cellphone,Internal Trading Cost Centres
Swale Borough Council,29UM,03/02/2016,1138267,52.00,O2 (UK) LTD,1743099                  ,MKIP ENVIRONMENTAL SERVICES,Cellphone,Internal Trading Cost Centres
Swale Borough Council,29UM,03/02/2016,1138267,9.50,O2 (UK) LTD,1743099                  ,CHIEF EXECUTIVE,Cellphone,Internal Trading Cost Centres
Swale Borough Council,29UM,03/02/2016,1138267,50.42,O2 (UK) LTD,1743099                  ,LEISURE & OPEN SPACES,Cellphone,Internal Trading Cost Centres
Swale Borough Council,29UM,03/02/2016,1138267,7.00,O2 (UK) LTD,1743099                  ,PLANNING SERVICES,Cellphone,Internal Trading Cost Centres
Swale Borough Council,29UM,03/02/2016,1138267,8.00,O2 (UK) LTD,1743099                  ,COMMISSIONING & CUSTOMER CONTACT,Cellphone,Internal Trading Cost Centres
Swale Borough Council,29UM,03/02/2016,1138267,21.00,O2 (UK) LTD,1743099                  ,COMMISSIONING & CUSTOMER CONTACT,Cellphone,Internal Trading Cost Centres
Swale Borough Council,29UM,03/02/2016,1138267,12.12,O2 (UK) LTD,1743099                  ,DIRECTOR OF REGENERATION,Cellphone,Internal Trading Cost Centres
Swale Borough Council,29UM,03/02/2016,1138267,9.50,O2 (UK) LTD,1743099                  ,DIRECTOR OF CORPORATE SERVICES,Cellphone,Internal Trading Cost Centres
Swale Borough Council,29UM,03/02/2016,1138267,15.00,O2 (UK) LTD,1743099                  ,COMMUNICATIONS,Cellphone,Internal Trading Cost Centres
Swale Borough Council,29UM,03/02/2016,1138267,7.50,O2 (UK) LTD,1743099                  ,POLICY,Cellphone,Internal Trading Cost Centres
Swale Borough Council,29UM,03/02/2016,1138267,38.00,O2 (UK) LTD,1743099                  ,ENVIRONMENTAL RESPONSE TEAM,Cellphone,Internal Trading Cost Centres
Swale Borough Council,29UM,03/02/2016,1138267,28.50,O2 (UK) LTD,1743099                  ,MKIP LEGAL SERVICES,Cellphone,Internal Trading Cost Centres
Swale Borough Council,29UM,03/02/2016,1138267,2.00,O2 (UK) LTD,1743099                  ,HOUSING SERVICES,Cellphone,Housing
Swale Borough Council,29UM,03/02/2016,1138267,38.00,O2 (UK) LTD,1743099                  ,HOUSING SERVICES,Cellphone,Housing
Swale Borough Council,29UM,03/02/2016,1138267,33.76,O2 (UK) LTD,1743099                  ,ENVIRONMENTAL RESPONSE TEAM,Cellphone,Environmental and Regulatory Services
Swale Borough Council,29UM,03/02/2016,1138267,7.50,O2 (UK) LTD,1743099                  ,TOURISM & SPORTS DEVELOPMENT,Cellphone,Cultural and Related Services
Swale Borough Council,29UM,03/02/2016,1138267,2.60,O2 (UK) LTD,1743099                  ,HOUSING SERVICES,Cellphone,Housing
Swale Borough Council,29UM,03/02/2016,1138552,459.95,OBSIDIAN SECURITY LTD.,                         ,PROPERTY SERVICES,Service Contracts,Corporate & Democratic Core
Swale Borough Council,29UM,03/02/2016,1138557,262.50,OBSIDIAN SECURITY LTD.,                         ,PROPERTY SERVICES,Service Contracts,Corporate & Democratic Core
Swale Borough Council,29UM,03/02/2016,1138753,290.33,PORTAKABIN LIMITED,685303                   ,LEISURE & OPEN SPACES,Maintenance - Grounds,Environmental and Regulatory Services
Swale Borough Council,29UM,03/02/2016,1138681,450.00,PUTLANDS VETERINARY SURGERY,                         ,ENVIRONMENTAL RESPONSE TEAM,Fees - Veterinary,Environmental and Regulatory Services
Swale Borough Council,29UM,03/02/2016,1138524,755.00,REARDON PROPERTIES,                         ,HOUSING SERVICES,B & B - Landlords Payments,Housing
Swale Borough Council,29UM,03/02/2016,1138525,455.00,REARDON PROPERTIES,                         ,HOUSING SERVICES,B & B - Landlords Payments,Housing
Swale Borough Council,29UM,03/02/2016,1138549,980.75,REARDON PROPERTIES,                         ,HOUSING SERVICES,B & B - Landlords Payments,Housing
Swale Borough Council,29UM,03/02/2016,1138550,1153.85,REARDON PROPERTIES,                         ,HOUSING SERVICES,B & B - Landlords Payments,Housing
Swale Borough Council,29UM,03/02/2016,1138555,795.00,REARDON PROPERTIES,                         ,HOUSING SERVICES,B & B - Landlords Payments,Housing
Swale Borough Council,29UM,03/02/2016,1138556,350.00,REARDON PROPERTIES,                         ,HOUSING SERVICES,B & B - Landlords Payments,Housing
Swale Borough Council,29UM,03/02/2016,1138742,946.00,REWIND UK,                         ,COMMUNITY SAFETY,Fees And Services,Planning and Development Services
Swale Borough Council,29UM,03/02/2016,1138738,692.00,SHARNWOOD DEVELOPMENTS LTD,                         ,HOUSING SERVICES,RDS - Landlord claim on Bond Scheme,Housing
Swale Borough Council,29UM,03/02/2016,1138545,455.00,SMARTWATER TECHNOLOGY LTD,                         ,COMMUNITY SAFETY,Grants & Subscriptions,Planning and Development Services
Swale Borough Council,29UM,03/02/2016,1138622,295.00,SOUND ADVICE P.A. INSTALLATIONS,3003635                  ,PROPERTY SERVICES,Service Contracts,Corporate & Democratic Core
Swale Borough Council,29UM,03/02/2016,1138614,724.00,SOUTH WEST PLAY,                         ,LEISURE & OPEN SPACES,Play Equipment Maintenance - CIS,Cultural and Related Services
Swale Borough Council,29UM,03/02/2016,1138487,846.49,SOUTHERN WATER SERVICES LIMITED,2366670                  ,PROPERTY SERVICES,Water - Metered,Corporate & Democratic Core
Swale Borough Council,29UM,03/02/2016,1138487,1505.28,SOUTHERN WATER SERVICES LIMITED,2366670                  ,PROPERTY SERVICES,Water - Metered,Corporate & Democratic Core
Swale Borough Council,29UM,03/02/2016,1138680,726.50,TEDDSONS & SONS LTD,08945129                 ,LEISURE & OPEN SPACES,Maintenance - Grounds,Cultural and Related Services
Swale Borough Council,29UM,03/02/2016,1138680,1319.45,TEDDSONS & SONS LTD,08945129                 ,LEISURE & OPEN SPACES,Maintenance - Grounds,Cultural and Related Services
Swale Borough Council,29UM,03/02/2016,1138625,1149.50,THE OYSTER PARTNERSHIP,05020374                 ,PLANNING SERVICES,Agency/Contract Staff,Internal Trading Cost Centres
Swale Borough Council,29UM,03/02/2016,1138670,4394.00,UPM TILHILL,3242286                  ,LEISURE & OPEN SPACES,Maintenance - Grounds Contract,Cultural and Related Services
Swale Borough Council,29UM,03/02/2016,1138670,3618.25,UPM TILHILL,3242286                  ,LEISURE & OPEN SPACES,Maintenance - Grounds Contract,Cultural and Related Services
Swale Borough Council,29UM,03/02/2016,1138660,1117.25,VENN GROUP LIMITED,                         ,MKIP LEGAL SERVICES,Agency/Contract Staff,Internal Trading Cost Centres
Swale Borough Council,29UM,03/02/2016,1138661,1230.00,VENN GROUP LIMITED,                         ,MKIP LEGAL SERVICES,Agency/Contract Staff,Internal Trading Cost Centres
Swale Borough Council,29UM,03/02/2016,1138671,1706.46,WESTCOUNTRY GROUP,4314613                  ,REVENUE SERVICES,Stationery,Central Services to the Public
Swale Borough Council,29UM,03/02/2016,1138632,1823.31,WHISTL LONDON LTD,06493826                 ,REVENUE SERVICES,Postage,Central Services to the Public
Swale Borough Council,29UM,03/02/2016,1138632,911.66,WHISTL LONDON LTD,06493826                 ,REVENUE SERVICES,Postage,Housing
Swale Borough Council,29UM,03/02/2016,1138632,521.59,WHISTL LONDON LTD,06493826                 ,PROPERTY SERVICES,Postage,Holding Codes
Swale Borough Council,29UM,03/02/2016,1138633,779.00,WHISTL LONDON LTD,06493826                 ,REVENUE SERVICES,Postage,Central Services to the Public
Swale Borough Council,29UM,03/02/2016,1138633,389.18,WHISTL LONDON LTD,06493826                 ,REVENUE SERVICES,Postage,Housing
Swale Borough Council,29UM,03/02/2016,1138633,783.07,WHISTL LONDON LTD,06493826                 ,PROPERTY SERVICES,Postage,Holding Codes
Swale Borough Council,29UM,03/02/2016,1138712,534.00,WHISTL LONDON LTD,06493826                 ,REVENUE SERVICES,Postage,Central Services to the Public
Swale Borough Council,29UM,03/02/2016,1138712,267.45,WHISTL LONDON LTD,06493826                 ,REVENUE SERVICES,Postage,Housing
Swale Borough Council,29UM,03/02/2016,1138712,829.32,WHISTL LONDON LTD,06493826                 ,PROPERTY SERVICES,Postage,Holding Codes
Swale Borough Council,29UM,03/02/2016,1138521,400.00,WILLOW TREE HOME SOLUTIONS LTD,                         ,HOUSING SERVICES,Staying Put small repairs (contractors),Housing
Swale Borough Council,29UM,10/02/2016,1138765,429.00,AJS LTD,2944618                  ,PROPERTY SERVICES,Service Contracts,Cultural and Related Services
Swale Borough Council,29UM,10/02/2016,1138687,40.25,ALLSTAR BUSINESS SOLUTIONS LTD - (DT),1073098                  ,DEMOCRATIC & ELECTORAL SERVICES,Petrol/Derv & Oil,Corporate & Democratic Core
Swale Borough Council,29UM,10/02/2016,1138687,32.89,ALLSTAR BUSINESS SOLUTIONS LTD - (DT),1073098                  ,SERVICE DELIVERY,Petrol/Derv & Oil,Cultural and Related Services
Swale Borough Council,29UM,10/02/2016,1138687,188.70,ALLSTAR BUSINESS SOLUTIONS LTD - (DT),1073098                  ,ENVIRONMENTAL RESPONSE TEAM,Fuel For Contract Vehicles,Internal Trading Cost Centres
Swale Borough Council,29UM,10/02/2016,1138744,4381.42,BLENWOOD LTD,4383277                  ,LEISURE & OPEN SPACES,Grounds Maint Suspense,Cultural and Related Services
Swale Borough Council,29UM,10/02/2016,1138745,101778.20,BLENWOOD LTD,4383277                  ,LEISURE & OPEN SPACES,Grounds Maint Suspense,Cultural and Related Services
Swale Borough Council,29UM,10/02/2016,1137713,250.00,BT REDCARE,1800000                  ,COMMUNITY SAFETY,CCTV Line Rental,Environmental and Regulatory Services
Swale Borough Council,29UM,10/02/2016,1138822,3333.33,CHALKWELL COACH HIRE LTD,2520842                  ,PLANNING SERVICES,Payments in Year,Ledger/Suspense Codes
Swale Borough Council,29UM,10/02/2016,1138823,2324.14,CHALKWELL COACH HIRE LTD,2520842                  ,PLANNING SERVICES,Payments in Year,Ledger/Suspense Codes
Swale Borough Council,29UM,10/02/2016,1138862,-30.00,CHEGWORTH GRAPHIC,7683594                  ,COMMUNICATIONS,Signage,Internal Trading Cost Centres
Swale Borough Council,29UM,10/02/2016,1138862,-1380.00,CHEGWORTH GRAPHIC,7683594                  ,COMMUNICATIONS,Signage,Internal Trading Cost Centres
Swale Borough Council,29UM,10/02/2016,1138862,-119.86,CHEGWORTH GRAPHIC,7683594                  ,COMMUNICATIONS,Signage,Internal Trading Cost Centres
Swale Borough Council,29UM,10/02/2016,1138863,30.00,CHEGWORTH GRAPHIC,7683594                  ,COMMUNICATIONS,Signage,Internal Trading Cost Centres
Swale Borough Council,29UM,10/02/2016,1138863,1380.00,CHEGWORTH GRAPHIC,7683594                  ,COMMUNICATIONS,Signage,Internal Trading Cost Centres
Swale Borough Council,29UM,10/02/2016,1138863,119.86,CHEGWORTH GRAPHIC,7683594                  ,COMMUNICATIONS,Signage,Internal Trading Cost Centres
Swale Borough Council,29UM,10/02/2016,1138740,7510.09,COVALENT SOFTWARE LIMITED,4645635                  ,FINANCIAL SERVICES,Payments in Year,Ledger/Suspense Codes
Swale Borough Council,29UM,10/02/2016,1138835,528.00,DISCLOSURE & BARRING SERVICE (DT),                         ,SERVICE DELIVERY,Fees And Services,Environmental and Regulatory Services
Swale Borough Council,29UM,10/02/2016,1138876,25.00,DISCLOSURE SCOTLAND,                         ,COMMUNITY SAFETY,Fees And Services,Environmental and Regulatory Services
Swale Borough Council,29UM,10/02/2016,1138876,50.00,DISCLOSURE SCOTLAND,                         ,REVENUE SERVICES,Fees And Services,Central Services to the Public
Swale Borough Council,29UM,10/02/2016,1138876,25.00,DISCLOSURE SCOTLAND,                         ,REVENUE SERVICES,Fees And Services,Housing
Swale Borough Council,29UM,10/02/2016,1138876,100.00,DISCLOSURE SCOTLAND,                         ,REVENUE SERVICES,Fees And Services,Housing
Swale Borough Council,29UM,10/02/2016,1138876,25.00,DISCLOSURE SCOTLAND,                         ,HUMAN RESOURCES,Fees And Services,Internal Trading Cost Centres
Swale Borough Council,29UM,10/02/2016,1138876,25.00,DISCLOSURE SCOTLAND,                         ,MKIP ENVIRONMENTAL SERVICES,Fees And Services,Internal Trading Cost Centres
Swale Borough Council,29UM,10/02/2016,1138896,10450.00,DOLPHIN STAIRLIFTS (KENT),04181846                 ,HOUSING SERVICES,Housing Renovation Grants,Not used in this Structure
Swale Borough Council,29UM,10/02/2016,1138832,255.06,EDF ENERGY,2228297                  ,CAR PARKS,Electricity,Highway and Transport Services
Swale Borough Council,29UM,10/02/2016,1138847,870.00,FAVERSHAM TOWN COUNCIL,                         ,TOURISM & SPORTS DEVELOPMENT,Grants & Subscriptions,Cultural and Related Services
Swale Borough Council,29UM,10/02/2016,1138893,7960.00,HUBBARD & HOUGHTON CONSTRUCTION LTD,                         ,HOUSING SERVICES,Housing Renovation Grants,Not used in this Structure
Swale Borough Council,29UM,10/02/2016,1138895,894.60,HUBBARD & HOUGHTON CONSTRUCTION LTD,                         ,HOUSING SERVICES,Housing Renovation Grants,Not used in this Structure
Swale Borough Council,29UM,10/02/2016,1138851,300.00,ISLAND ALL STARS BATON TWIRLING ACADEMY,                         ,COMMUNITY SAFETY,Grants & Subscriptions,Central Services to the Public
Swale Borough Council,29UM,10/02/2016,1138891,5160.69,J & D SYSTEMS,                         ,HOUSING SERVICES,Housing Renovation Grants,Not used in this Structure
Swale Borough Council,29UM,10/02/2016,1138669,1736.00,JACKSON LIFT SERVICES LTD,2186996                  ,PROPERTY SERVICES,Buildings Maintenance,Corporate & Democratic Core
Swale Borough Council,29UM,10/02/2016,1138783,1736.00,JACKSON LIFT SERVICES LTD,2186996                  ,PROPERTY SERVICES,Buildings Maintenance,Corporate & Democratic Core
Swale Borough Council,29UM,10/02/2016,1138834,200.00,LEMAR LIMITED,04350292                 ,SERVICE DELIVERY,Private Contractors - CIS,Highway and Transport Services
Swale Borough Council,29UM,10/02/2016,1138834,100.00,LEMAR LIMITED,04350292                 ,SERVICE DELIVERY,Private Contractors - CIS,Highway and Transport Services
Swale Borough Council,29UM,10/02/2016,1138704,1575.00,LUSHLAND,4289261                  ,PLANNING SERVICES,Fees And Services,Planning and Development Services
Swale Borough Council,29UM,10/02/2016,1138717,265.59,LYRECO UK LTD,                         ,PLANNING SERVICES,Stationery,Planning and Development Services
Swale Borough Council,29UM,10/02/2016,1138285,2355.00,MAGEES GUESTHOUSE,                         ,HOUSING SERVICES,B & B - Landlords Payments,Housing
Swale Borough Council,29UM,10/02/2016,1137029,422.00,MEDWAY ACCOMMODATION LIMITED,                         ,HOUSING SERVICES,B & B - Landlords Payments,Housing
Swale Borough Council,29UM,10/02/2016,1137029,2025.60,MEDWAY ACCOMMODATION LIMITED,                         ,HOUSING SERVICES,B & B - Landlords Payments,Housing
Swale Borough Council,29UM,10/02/2016,1138560,1117.60,MEDWAY ACCOMMODATION LIMITED,                         ,HOUSING SERVICES,B & B - Landlords Payments,Housing
Swale Borough Council,29UM,10/02/2016,1138560,232.83,MEDWAY ACCOMMODATION LIMITED,                         ,HOUSING SERVICES,B & B - Landlords Payments,Housing
Swale Borough Council,29UM,10/02/2016,1138764,1494.40,MEDWAY ACCOMMODATION LIMITED,                         ,HOUSING SERVICES,B & B - Landlords Payments,Housing
Swale Borough Council,29UM,10/02/2016,1138764,311.33,MEDWAY ACCOMMODATION LIMITED,                         ,HOUSING SERVICES,B & B - Landlords Payments,Housing
Swale Borough Council,29UM,10/02/2016,1138818,585.00,METRIC GROUP LTD,2560839                  ,CAR PARKS,Fees - Licence,Highway and Transport Services
Swale Borough Council,29UM,10/02/2016,1138819,2080.80,METRIC GROUP LTD,2560839                  ,CAR PARKS,Equipment Maintenance,Highway and Transport Services
Swale Borough Council,29UM,10/02/2016,1138857,300.00,MILTON CREEK TRUST,                         ,COMMUNITY SAFETY,Grants & Subscriptions,Central Services to the Public
Swale Borough Council,29UM,10/02/2016,1138875,277.42,OBSIDIAN SECURITY LTD.,                         ,PROPERTY SERVICES,Service Contracts,Corporate & Democratic Core
Swale Borough Council,29UM,10/02/2016,1138777,5532.10,P BINNIE CONSULTANCY LTD,07794784                 ,ECONOMIC DEVELOPMENT,Consultancy/Specialist Advice,Planning and Development Services
Swale Borough Council,29UM,10/02/2016,1138914,360.00,RIPPLEEFFECT,                         ,TOURISM & SPORTS DEVELOPMENT,Grants & Subscriptions,Cultural and Related Services
Swale Borough Council,29UM,10/02/2016,1138739,3478.00,RP AUSTIN,                         ,MKIP LEGAL SERVICES,Agency/Contract Staff,Internal Trading Cost Centres
Swale Borough Council,29UM,10/02/2016,1138702,375.00,RURAL PLANNING LTD,4426249                  ,PLANNING SERVICES,Fees And Services,Planning and Development Services
Swale Borough Council,29UM,10/02/2016,1138536,300.00,SERCO LEISURE OPERATING LIMITED,04687478                 ,PROPERTY SERVICES,Service Contracts,Cultural and Related Services
Swale Borough Council,29UM,10/02/2016,1138838,15000.00,SMC FORD,                         ,FINANCIAL SERVICES,Payments in Year,Ledger/Suspense Codes
Swale Borough Council,29UM,10/02/2016,1138375,622.80,SOLON SECURITY,03065075                 ,HOUSING SERVICES,Staying Put - Materials,Housing
Swale Borough Council,29UM,10/02/2016,1138489,1281.62,SOUTHERN WATER SERVICES LIMITED,2366670                  ,CONTRACT & PROCUREMENT,Water - Metered,Environmental and Regulatory Services
Swale Borough Council,29UM,10/02/2016,1138547,666.78,SOUTHERN WATER SERVICES LIMITED,2366670                  ,LEISURE & OPEN SPACES,Water - Metered,Cultural and Related Services
Swale Borough Council,29UM,10/02/2016,1138931,1340.70,THE JOHN WOODWARD PARTNERSHIP,                         ,PLANNING SERVICES,Fees And Services,Planning and Development Services
Swale Borough Council,29UM,10/02/2016,1138758,1330.00,THE OYSTER PARTNERSHIP,05020374                 ,PLANNING SERVICES,Agency/Contract Staff,Internal Trading Cost Centres
Swale Borough Council,29UM,10/02/2016,1138916,1092.50,THE OYSTER PARTNERSHIP,05020374                 ,PLANNING SERVICES,Agency/Contract Staff,Internal Trading Cost Centres
Swale Borough Council,29UM,10/02/2016,1138168,525.00,TOPCOAT CONSTRUCTION LTD,3075151                  ,PROPERTY SERVICES,Non-Planned Building Maintenance,Trading Undertaking
Swale Borough Council,29UM,10/02/2016,1138168,207.20,TOPCOAT CONSTRUCTION LTD,3075151                  ,PROPERTY SERVICES,Non-Planned Building Maintenance,Trading Undertaking
Swale Borough Council,29UM,10/02/2016,1138263,1700.00,TRAFALGAR TAVERN LTD,07999329                 ,HOUSING SERVICES,B & B - Landlords Payments,Housing
Swale Borough Council,29UM,10/02/2016,1138429,1680.00,TRAFALGAR TAVERN LTD,07999329                 ,HOUSING SERVICES,B & B - Landlords Payments,Housing
Swale Borough Council,29UM,10/02/2016,1138747,1060.00,TRAFALGAR TAVERN LTD,07999329                 ,HOUSING SERVICES,B & B - Landlords Payments,Housing
Swale Borough Council,29UM,10/02/2016,1138767,1225.00,TRAFALGAR TAVERN LTD,07999329                 ,HOUSING SERVICES,B & B - Landlords Payments,Housing
Swale Borough Council,29UM,10/02/2016,1138785,1645.00,TRAFALGAR TAVERN LTD,07999329                 ,HOUSING SERVICES,B & B - Landlords Payments,Housing
Swale Borough Council,29UM,10/02/2016,1138843,1414.50,VENN GROUP LIMITED,                         ,MKIP LEGAL SERVICES,Agency/Contract Staff,Internal Trading Cost Centres
Swale Borough Council,29UM,10/02/2016,1138844,1230.00,VENN GROUP LIMITED,                         ,MKIP LEGAL SERVICES,Agency/Contract Staff,Internal Trading Cost Centres
Swale Borough Council,29UM,10/02/2016,1138910,500.00,WARDEN BAY VILLAGE HALL MANAGEMENT COMMITTEE,                         ,TOURISM & SPORTS DEVELOPMENT,Grants & Subscriptions,Cultural and Related Services
Swale Borough Council,29UM,10/02/2016,1138894,4640.00,WILLOW TREE HOME SOLUTIONS LTD,                         ,HOUSING SERVICES,Housing Renovation Grants,Not used in this Structure
Swale Borough Council,29UM,10/02/2016,1138897,529.79,WILLOW TREE HOME SOLUTIONS LTD,                         ,HOUSING SERVICES,Housing Renovation Grants,Not used in this Structure
Swale Borough Council,29UM,17/02/2016,1138766,2607.00,ALLEN SCOTT LTD,5425339                  ,LEISURE & OPEN SPACES,Capitalised Fees And Charges,Not used in this Structure
Swale Borough Council,29UM,17/02/2016,1139077,500.00,REDACTED PERSONAL INFORMATION,                         ,HOUSING SERVICES,RDS - Landlord claim on Bond Scheme,Housing
Swale Borough Council,29UM,17/02/2016,1138958,1650.00,BLUE TOWN REMEMBERED,                         ,COMMUNITY SAFETY,Grants & Subscriptions,Central Services to the Public
Swale Borough Council,29UM,17/02/2016,1138821,1200.00,BRC CONSULTING  SERVICES LTD,                         ,FINANCIAL SERVICES,Consultancy/Specialist Advice,Corporate & Democratic Core
Swale Borough Council,29UM,17/02/2016,1138933,4732.85,BT REDCARE,1800000                  ,COMMUNITY SAFETY,CCTV Line Rental,Environmental and Regulatory Services
Swale Borough Council,29UM,17/02/2016,1138939,366.67,CHALKWELL COACH HIRE LTD,2520842                  ,ECONOMIC DEVELOPMENT,Regeneration Fund Expenditure,Ledger/Suspense Codes
Swale Borough Council,29UM,17/02/2016,1138939,165.00,CHALKWELL COACH HIRE LTD,2520842                  ,ECONOMIC DEVELOPMENT,Regeneration Fund Expenditure,Ledger/Suspense Codes
Swale Borough Council,29UM,17/02/2016,1138817,628.38,COMENSURA LTD,04085767                 ,HOUSING SERVICES,Agency/Contract Staff,Housing
Swale Borough Council,29UM,17/02/2016,1138817,1572.87,COMENSURA LTD,04085767                 ,MKIP LEGAL SERVICES,Agency/Contract Staff,Internal Trading Cost Centres
Swale Borough Council,29UM,17/02/2016,1138817,1572.87,COMENSURA LTD,04085767                 ,MKIP LEGAL SERVICES,Agency/Contract Staff,Internal Trading Cost Centres
Swale Borough Council,29UM,17/02/2016,1138817,1693.49,COMENSURA LTD,04085767                 ,MKIP LEGAL SERVICES,Agency/Contract Staff,Internal Trading Cost Centres
Swale Borough Council,29UM,17/02/2016,1138817,180.41,COMENSURA LTD,04085767                 ,HOUSING SERVICES,Agency/Contract Staff,Housing
Swale Borough Council,29UM,17/02/2016,1138964,508.85,COMENSURA LTD,04085767                 ,HOUSING SERVICES,Agency/Contract Staff,Housing
Swale Borough Council,29UM,17/02/2016,1138964,1693.47,COMENSURA LTD,04085767                 ,MKIP LEGAL SERVICES,Agency/Contract Staff,Internal Trading Cost Centres
Swale Borough Council,29UM,17/02/2016,1138964,1594.10,COMENSURA LTD,04085767                 ,MKIP LEGAL SERVICES,Agency/Contract Staff,Internal Trading Cost Centres
Swale Borough Council,29UM,17/02/2016,1138964,1594.10,COMENSURA LTD,04085767                 ,MKIP LEGAL SERVICES,Agency/Contract Staff,Internal Trading Cost Centres
Swale Borough Council,29UM,17/02/2016,1138964,1594.10,COMENSURA LTD,04085767                 ,MKIP LEGAL SERVICES,Agency/Contract Staff,Internal Trading Cost Centres
Swale Borough Council,29UM,17/02/2016,1138964,87.28,COMENSURA LTD,04085767                 ,HOUSING SERVICES,Agency/Contract Staff,Housing
Swale Borough Council,29UM,17/02/2016,1138938,1500.00,DAISY TELECOMS LTD,4145329                  ,ICT,Payments in Year,Ledger/Suspense Codes
Swale Borough Council,29UM,17/02/2016,1139105,934.12,DOLPHIN STAIRLIFTS (KENT),04181846                 ,HOUSING SERVICES,Housing Renovation Grants,Not used in this Structure
Swale Borough Council,29UM,17/02/2016,1139007,360.00,FIRE & SECURITY CONSULTANCY LTD,5946022                  ,PROPERTY SERVICES,Service Contracts,Corporate & Democratic Core
Swale Borough Council,29UM,17/02/2016,1139117,1000.00,GASWORKS KENT,                         ,HOUSING SERVICES,Housing Renovation Grants,Not used in this Structure
Swale Borough Council,29UM,17/02/2016,1139110,554.20,HUBBARD & HOUGHTON CONSTRUCTION LTD,                         ,HOUSING SERVICES,Housing Renovation Grants,Not used in this Structure
Swale Borough Council,29UM,17/02/2016,1139111,4500.00,HUBBARD & HOUGHTON CONSTRUCTION LTD,                         ,HOUSING SERVICES,Housing Renovation Grants,Not used in this Structure
Swale Borough Council,29UM,17/02/2016,1139112,4950.00,HUBBARD & HOUGHTON CONSTRUCTION LTD,                         ,HOUSING SERVICES,Housing Renovation Grants,Not used in this Structure
Swale Borough Council,29UM,17/02/2016,1139113,6300.90,HUBBARD & HOUGHTON CONSTRUCTION LTD,                         ,HOUSING SERVICES,Housing Renovation Grants,Not used in this Structure
Swale Borough Council,29UM,17/02/2016,1138926,1743.30,IDOX SOFTWARE LTD,06706798                 ,FINANCIAL SERVICES,Communities Fund Expenditure,Ledger/Suspense Codes
Swale Borough Council,29UM,17/02/2016,1138946,1650.00,INTEGRA ASSOCIATES LIMITED,03054901                 ,FINANCIAL SERVICES,Capitalised Fees And Charges,Not used in this Structure
Swale Borough Council,29UM,17/02/2016,1139107,3050.00,J & D SYSTEMS,                         ,HOUSING SERVICES,Housing Renovation Grants,Not used in this Structure
Swale Borough Council,29UM,17/02/2016,1139108,529.50,J & D SYSTEMS,                         ,HOUSING SERVICES,Housing Renovation Grants,Not used in this Structure
Swale Borough Council,29UM,17/02/2016,1139109,463.00,J & D SYSTEMS,                         ,HOUSING SERVICES,Housing Renovation Grants,Not used in this Structure
Swale Borough Council,29UM,17/02/2016,1138864,821.33,JASMIL KENNELS,05595524                 ,ENVIRONMENTAL RESPONSE TEAM,Kennelling Of Dogs,Environmental and Regulatory Services
Swale Borough Council,29UM,17/02/2016,1138864,-120.00,JASMIL KENNELS,05595524                 ,ENVIRONMENTAL RESPONSE TEAM,Income collected by Dog Kennels,Environmental and Regulatory Services
Swale Borough Council,29UM,17/02/2016,1139114,587.00,JCBS BUILDING SERVICES,                         ,HOUSING SERVICES,Housing Renovation Grants,Not used in this Structure
Swale Borough Council,29UM,17/02/2016,1139115,564.00,JCBS BUILDING SERVICES,                         ,HOUSING SERVICES,Housing Renovation Grants,Not used in this Structure
Swale Borough Council,29UM,17/02/2016,1139116,6865.56,JCBS BUILDING SERVICES,                         ,HOUSING SERVICES,Housing Renovation Grants,Not used in this Structure
Swale Borough Council,29UM,17/02/2016,1138772,660.93,KENT COUNTY COUNCIL (KCS),                         ,PLANNING SERVICES,Computer Equipment & Materials,Planning and Development Services
Swale Borough Council,29UM,17/02/2016,1139008,1145.00,KENT MESSENGER LTD,505554                   ,COMMUNICATIONS,Advertising & Promotion,Internal Trading Cost Centres
Swale Borough Council,29UM,17/02/2016,1138965,299.00,LOCAL GOVERNMENT ASSOCIATION,                         ,DEMOCRATIC & ELECTORAL SERVICES,Conference,Corporate & Democratic Core
Swale Borough Council,29UM,17/02/2016,1138911,172.72,LOGOTECH SYSTEMS,2529444                  ,FINANCIAL SERVICES,Computer Equipment & Materials,Corporate & Democratic Core
Swale Borough Council,29UM,17/02/2016,1138911,1900.00,LOGOTECH SYSTEMS,2529444                  ,FINANCIAL SERVICES,Payments in Year,Ledger/Suspense Codes
Swale Borough Council,29UM,17/02/2016,1138751,3109.50,REDACTED PERSONAL INFORMATION,                         ,PLANNING SERVICES,Fees And Services,Planning and Development Services
Swale Borough Council,29UM,17/02/2016,1138925,625.00,REDACTED PERSONAL INFORMATION,                         ,HOUSING SERVICES,RDS - Landlord claim on Bond Scheme,Housing
Swale Borough Council,29UM,17/02/2016,1138901,375.36,O2 (UK) LTD,1743099                  ,CHIEF EXECUTIVE,Cellphone,Internal Trading Cost Centres
Swale Borough Council,29UM,17/02/2016,1138903,330.82,O2 (UK) LTD,1743099                  ,REVENUE SERVICES,Cellphone,Housing
Swale Borough Council,29UM,17/02/2016,1138943,462.50,OBSIDIAN SECURITY LTD.,                         ,PROPERTY SERVICES,Service Contracts,Corporate & Democratic Core
Swale Borough Council,29UM,17/02/2016,1139016,360.00,OBSIDIAN SECURITY LTD.,                         ,PROPERTY SERVICES,Equipment Purchase,Corporate & Democratic Core
Swale Borough Council,29UM,17/02/2016,1138883,23.33,P&MM LTD,1090180                  ,HUMAN RESOURCES,Fees And Services,Corporate & Democratic Core
Swale Borough Council,29UM,17/02/2016,1138951,8359.00,PINSENT MASONS LLP,OC333653                 ,ECONOMIC DEVELOPMENT,Legal Fees,Planning and Development Services
Swale Borough Council,29UM,17/02/2016,1138956,300.00,QUEENBOROUGH BOWLS CLUB,                         ,COMMUNITY SAFETY,Grants & Subscriptions,Central Services to the Public
Swale Borough Council,29UM,17/02/2016,1138913,874.64,ROYAL MAIL GROUP LTD,4138203                  ,REVENUE SERVICES,Postage,Central Services to the Public
Swale Borough Council,29UM,17/02/2016,1138995,500.00,SEQUENCE DANCE CLUBS,                         ,COMMUNITY SAFETY,Grants & Subscriptions,Central Services to the Public
Swale Borough Council,29UM,17/02/2016,1138996,1050.00,SEQUENCE DANCE CLUBS,                         ,COMMUNITY SAFETY,Grants & Subscriptions,Central Services to the Public
Swale Borough Council,29UM,17/02/2016,1138999,2282.20,SHEPPEY MATTERS,3946296                  ,ECONOMIC DEVELOPMENT,Fees And Services,Planning and Development Services
Swale Borough Council,29UM,17/02/2016,1138957,500.00,SITTINGBOURNE HERITAGE MUSEUM,                         ,TOURISM & SPORTS DEVELOPMENT,Grants & Subscriptions,Cultural and Related Services
Swale Borough Council,29UM,17/02/2016,1139082,10000.00,SMC FORD,                         ,FINANCIAL SERVICES,Payments in Year,Ledger/Suspense Codes
Swale Borough Council,29UM,17/02/2016,1138954,400.00,SOUTH AVENUE JUNIOR SCHOOL,                         ,COMMUNITY SAFETY,Grants & Subscriptions,Central Services to the Public
Swale Borough Council,29UM,17/02/2016,1138860,3066.38,SOUTHERN COMMUNICATIONS LTD,1328040                  ,ICT,Telephone,Corporate & Democratic Core
Swale Borough Council,29UM,17/02/2016,1138973,907.43,STG BUILDING CONTROL PARTNERSHIP,                         ,COMMUNITY SAFETY,Capitalised Fees And Charges,Not used in this Structure
Swale Borough Council,29UM,17/02/2016,1138973,181.49,STG BUILDING CONTROL PARTNERSHIP,                         ,COMMUNITY SAFETY,Capitalised Fees And Charges,Not used in this Structure
Swale Borough Council,29UM,17/02/2016,1138848,500.00,SYNERGY CONSTRUCTION & PROPERTY CONSULTANTS LLP,                         ,COMMUNITY SAFETY,Capitalised Fees And Charges,Not used in this Structure
Swale Borough Council,29UM,17/02/2016,1138929,280.00,THE LETTINGS CENTRE,                         ,HOUSING SERVICES,RDS - Landlord claim on Bond Scheme,Housing
Swale Borough Council,29UM,17/02/2016,1139004,1455.50,VENN GROUP LIMITED,                         ,MKIP LEGAL SERVICES,Agency/Contract Staff,Internal Trading Cost Centres
Swale Borough Council,29UM,17/02/2016,1139005,1230.00,VENN GROUP LIMITED,                         ,MKIP LEGAL SERVICES,Agency/Contract Staff,Internal Trading Cost Centres
Swale Borough Council,29UM,17/02/2016,1138877,616.53,WHISTL LONDON LTD,06493826                 ,REVENUE SERVICES,Postage,Central Services to the Public
Swale Borough Council,29UM,17/02/2016,1138877,308.27,WHISTL LONDON LTD,06493826                 ,REVENUE SERVICES,Postage,Housing
Swale Borough Council,29UM,17/02/2016,1138877,444.18,WHISTL LONDON LTD,06493826                 ,PROPERTY SERVICES,Postage,Holding Codes
Swale Borough Council,29UM,17/02/2016,1138962,534.28,WHISTL LONDON LTD,06493826                 ,REVENUE SERVICES,Postage,Central Services to the Public
Swale Borough Council,29UM,17/02/2016,1138962,267.14,WHISTL LONDON LTD,06493826                 ,REVENUE SERVICES,Postage,Housing
Swale Borough Council,29UM,17/02/2016,1138962,486.82,WHISTL LONDON LTD,06493826                 ,PROPERTY SERVICES,Postage,Holding Codes
Swale Borough Council,29UM,17/02/2016,1139129,4076.64,WORLDPAY (DT),07316500                 ,REVENUE SERVICES,Commission Paid,Central Services to the Public
Swale Borough Council,29UM,17/02/2016,1139129,160.88,WORLDPAY (DT),07316500                 ,REVENUE SERVICES,Commission Paid,Central Services to the Public
Swale Borough Council,29UM,17/02/2016,1139129,52.45,WORLDPAY (DT),07316500                 ,REVENUE SERVICES,Commission Paid,Housing
Swale Borough Council,29UM,17/02/2016,1139129,38.32,WORLDPAY (DT),07316500                 ,EXCHEQUER,Commission Paid,Internal Trading Cost Centres
Swale Borough Council,29UM,17/02/2016,1139129,715.09,WORLDPAY (DT),07316500                 ,EXCHEQUER,Commission Paid,Internal Trading Cost Centres
Swale Borough Council,29UM,17/02/2016,1139129,359.38,WORLDPAY (DT),07316500                 ,EXCHEQUER,Commission Paid,Internal Trading Cost Centres
Swale Borough Council,29UM,17/02/2016,1139129,21.99,WORLDPAY (DT),07316500                 ,ICT,Fees And Services,Internal Trading Cost Centres
Swale Borough Council,29UM,24/02/2016,1138781,12856.01,APCOA PARKING (UK) LTD,2572947                  ,CAR PARKS,Private Contractors,Highway and Transport Services
Swale Borough Council,29UM,24/02/2016,1138781,19284.01,APCOA PARKING (UK) LTD,2572947                  ,CAR PARKS,Private Contractors,Highway and Transport Services
Swale Borough Council,29UM,24/02/2016,1138784,331.27,APCOA PARKING (UK) LTD,2572947                  ,CAR PARKS,Fees - Licence,Highway and Transport Services
Swale Borough Council,29UM,24/02/2016,1139093,765.00,BATES JPW ADVERTISING LTD,784540                   ,MKIP LEGAL SERVICES,Recruitment Adverts - Staff,Internal Trading Cost Centres
Swale Borough Council,29UM,24/02/2016,1139135,3909.78,BEMROSE MOBILE LTD,                         ,CAR PARKS,Fees - Licence,Highway and Transport Services
Swale Borough Council,29UM,24/02/2016,1138993,554.79,BLENWOOD LTD,4383277                  ,LEISURE & OPEN SPACES,Maintenance - Grounds Contract,Environmental and Regulatory Services
Swale Borough Council,29UM,24/02/2016,1138994,413.36,BLENWOOD LTD,4383277                  ,LEISURE & OPEN SPACES,Maintenance - Grounds Contract,Environmental and Regulatory Services
Swale Borough Council,29UM,24/02/2016,1139199,900.00,CAPITA BUSINESS SERVICES LTD,                         ,REVENUE SERVICES,Fees And Services,Housing
Swale Borough Council,29UM,24/02/2016,1139017,145.00,CASEMENT SIGNS & GRAPHICS,                         ,SERVICE DELIVERY,Private Contractors - CIS,Highway and Transport Services
Swale Borough Council,29UM,24/02/2016,1139017,329.74,CASEMENT SIGNS & GRAPHICS,                         ,SERVICE DELIVERY,Private Contractors - CIS,Highway and Transport Services
Swale Borough Council,29UM,24/02/2016,1139088,7340.17,CHILDREN AND FAMILIES LTD,                         ,COMMUNITY SAFETY,Fees And Services,Planning and Development Services
Swale Borough Council,29UM,24/02/2016,1139089,363.30,CHILDREN AND FAMILIES LTD,                         ,COMMUNITY SAFETY,Fees And Services,Planning and Development Services
Swale Borough Council,29UM,24/02/2016,1139042,666.66,CLARKES SPORTS STUDIO,                         ,LEISURE & OPEN SPACES,Grants & Subscriptions,Cultural and Related Services
Swale Borough Council,29UM,24/02/2016,1139044,2300.00,CLARKES SPORTS STUDIO,                         ,LEISURE & OPEN SPACES,Contract Cleaning,Cultural and Related Services
Swale Borough Council,29UM,24/02/2016,1139118,485.74,COMENSURA LTD,04085767                 ,HOUSING SERVICES,Agency/Contract Staff,Housing
Swale Borough Council,29UM,24/02/2016,1139118,1693.49,COMENSURA LTD,04085767                 ,MKIP LEGAL SERVICES,Agency/Contract Staff,Internal Trading Cost Centres
Swale Borough Council,29UM,24/02/2016,1139118,318.37,COMENSURA LTD,04085767                 ,HOUSING SERVICES,Agency/Contract Staff,Housing
Swale Borough Council,29UM,24/02/2016,1139195,359.00,CONTRACT SECURITY SERVICES,2461362                  ,EXCHEQUER,Cash Security,Internal Trading Cost Centres
Swale Borough Council,29UM,24/02/2016,1139195,3319.68,CONTRACT SECURITY SERVICES,2461362                  ,CAR PARKS,Cash Security,Highway and Transport Services
Swale Borough Council,29UM,24/02/2016,1139265,2438.94,CO-OP BANK PLC - (DT),                         ,REVENUE SERVICES,Bank Charges Pay Point,Central Services to the Public
Swale Borough Council,29UM,24/02/2016,1139265,20.70,CO-OP BANK PLC - (DT),                         ,REVENUE SERVICES,Bank Charges Pay Point,Central Services to the Public
Swale Borough Council,29UM,24/02/2016,1139265,67.95,CO-OP BANK PLC - (DT),                         ,REVENUE SERVICES,Bank Charges Pay Point,Housing
Swale Borough Council,29UM,24/02/2016,1139265,11.25,CO-OP BANK PLC - (DT),                         ,EXCHEQUER,Bank Charges Pay Point,Internal Trading Cost Centres
Swale Borough Council,29UM,24/02/2016,1139265,40.50,CO-OP BANK PLC - (DT),                         ,EXCHEQUER,Bank Charges Pay Point,Internal Trading Cost Centres
Swale Borough Council,29UM,24/02/2016,1139103,43.00,DCB (KENT) LIMITED,03532339                 ,PROPERTY SERVICES,Non-Planned Building Maintenance,Corporate & Democratic Core
Swale Borough Council,29UM,24/02/2016,1139103,43.00,DCB (KENT) LIMITED,03532339                 ,PROPERTY SERVICES,Non-Planned Building Maintenance,Corporate & Democratic Core
Swale Borough Council,29UM,24/02/2016,1139103,33.75,DCB (KENT) LIMITED,03532339                 ,PROPERTY SERVICES,Non-Planned Building Maintenance,Corporate & Democratic Core
Swale Borough Council,29UM,24/02/2016,1139103,45.00,DCB (KENT) LIMITED,03532339                 ,PROPERTY SERVICES,Non-Planned Building Maintenance,Corporate & Democratic Core
Swale Borough Council,29UM,24/02/2016,1139103,25.20,DCB (KENT) LIMITED,03532339                 ,PROPERTY SERVICES,Non-Planned Building Maintenance,Corporate & Democratic Core
Swale Borough Council,29UM,24/02/2016,1139103,13.51,DCB (KENT) LIMITED,03532339                 ,PROPERTY SERVICES,Non-Planned Building Maintenance,Corporate & Democratic Core
Swale Borough Council,29UM,24/02/2016,1139103,33.87,DCB (KENT) LIMITED,03532339                 ,PROPERTY SERVICES,Non-Planned Building Maintenance,Corporate & Democratic Core
Swale Borough Council,29UM,24/02/2016,1139103,62.15,DCB (KENT) LIMITED,03532339                 ,PROPERTY SERVICES,Non-Planned Building Maintenance,Corporate & Democratic Core
Swale Borough Council,29UM,24/02/2016,1139103,344.00,DCB (KENT) LIMITED,03532339                 ,PROPERTY SERVICES,General Maintenance,Non-Distributed Costs
Swale Borough Council,29UM,24/02/2016,1139103,693.29,DCB (KENT) LIMITED,03532339                 ,PROPERTY SERVICES,General Maintenance,Non-Distributed Costs
Swale Borough Council,29UM,24/02/2016,1139103,78.75,DCB (KENT) LIMITED,03532339                 ,CONTRACT & PROCUREMENT,Non-Planned Building Maintenance,Environmental and Regulatory Services
Swale Borough Council,29UM,24/02/2016,1139103,22.50,DCB (KENT) LIMITED,03532339                 ,CONTRACT & PROCUREMENT,Non-Planned Building Maintenance,Environmental and Regulatory Services
Swale Borough Council,29UM,24/02/2016,1139103,32.25,DCB (KENT) LIMITED,03532339                 ,CONTRACT & PROCUREMENT,Non-Planned Building Maintenance,Environmental and Regulatory Services
Swale Borough Council,29UM,24/02/2016,1139103,86.00,DCB (KENT) LIMITED,03532339                 ,CONTRACT & PROCUREMENT,Non-Planned Building Maintenance,Environmental and Regulatory Services
Swale Borough Council,29UM,24/02/2016,1139103,180.00,DCB (KENT) LIMITED,03532339                 ,CONTRACT & PROCUREMENT,Non-Planned Building Maintenance,Environmental and Regulatory Services
Swale Borough Council,29UM,24/02/2016,1139103,77.72,DCB (KENT) LIMITED,03532339                 ,CONTRACT & PROCUREMENT,Non-Planned Building Maintenance,Environmental and Regulatory Services
Swale Borough Council,29UM,24/02/2016,1139103,28.00,DCB (KENT) LIMITED,03532339                 ,CONTRACT & PROCUREMENT,Non-Planned Building Maintenance,Environmental and Regulatory Services
Swale Borough Council,29UM,24/02/2016,1139103,76.98,DCB (KENT) LIMITED,03532339                 ,CONTRACT & PROCUREMENT,Non-Planned Building Maintenance,Environmental and Regulatory Services
Swale Borough Council,29UM,24/02/2016,1139103,87.13,DCB (KENT) LIMITED,03532339                 ,LEISURE & OPEN SPACES,Non-Planned Building Maintenance,Cultural and Related Services
Swale Borough Council,29UM,24/02/2016,1139103,259.13,DCB (KENT) LIMITED,03532339                 ,LEISURE & OPEN SPACES,Non-Planned Building Maintenance,Cultural and Related Services
Swale Borough Council,29UM,24/02/2016,1139103,64.50,DCB (KENT) LIMITED,03532339                 ,LEISURE & OPEN SPACES,Non-Planned Building Maintenance,Cultural and Related Services
Swale Borough Council,29UM,24/02/2016,1139103,86.00,DCB (KENT) LIMITED,03532339                 ,LEISURE & OPEN SPACES,Non-Planned Building Maintenance,Cultural and Related Services
Swale Borough Council,29UM,24/02/2016,1139103,49.99,DCB (KENT) LIMITED,03532339                 ,LEISURE & OPEN SPACES,Non-Planned Building Maintenance,Cultural and Related Services
Swale Borough Council,29UM,24/02/2016,1139103,80.91,DCB (KENT) LIMITED,03532339                 ,LEISURE & OPEN SPACES,Non-Planned Building Maintenance,Cultural and Related Services
Swale Borough Council,29UM,24/02/2016,1139103,16.72,DCB (KENT) LIMITED,03532339                 ,LEISURE & OPEN SPACES,Non-Planned Building Maintenance,Cultural and Related Services
Swale Borough Council,29UM,24/02/2016,1139009,514.42,EDF ENERGY,2228297                  ,CONTRACT & PROCUREMENT,Electricity,Environmental and Regulatory Services
Swale Borough Council,29UM,24/02/2016,1139037,293.65,EDF ENERGY,2228297                  ,CONTRACT & PROCUREMENT,Electricity,Environmental and Regulatory Services
Swale Borough Council,29UM,24/02/2016,1139187,860.58,GALTEC SOLUTIONS LTD,5209602                  ,ICT,Payments in Year,Ledger/Suspense Codes
Swale Borough Council,29UM,24/02/2016,1139073,1750.00,GEO-ENVIRONMENTAL SERVICES LTD,3214980                  ,COMMUNITY SAFETY,Capitalised Fees And Charges,Not used in this Structure
Swale Borough Council,29UM,24/02/2016,1139242,824.67,HUBBARD & HOUGHTON CONSTRUCTION LTD,                         ,HOUSING SERVICES,Housing Renovation Grants,Not used in this Structure
Swale Borough Council,29UM,24/02/2016,1139078,292.00,INFORM CPI LTD,                         ,REVENUE SERVICES,NNDR Additional Rateable Values,Central Services to the Public
Swale Borough Council,29UM,24/02/2016,1139179,4064.00,INFORM CPI LTD,                         ,REVENUE SERVICES,NNDR Additional Rateable Values,Central Services to the Public
Swale Borough Council,29UM,24/02/2016,1139181,660.00,INFORM CPI LTD,                         ,REVENUE SERVICES,NNDR Additional Rateable Values,Central Services to the Public
Swale Borough Council,29UM,24/02/2016,1138966,2350.00,J N CLEARANCE,                         ,CONTRACT & PROCUREMENT,"Clearance Of Waste,Fly Tipping",Environmental and Regulatory Services
Swale Borough Council,29UM,24/02/2016,1139119,1428.00,KENT COUNTY COUNCIL,                         ,SERVICE DELIVERY,Private Contractors - CIS,Environmental and Regulatory Services
Swale Borough Council,29UM,24/02/2016,1139193,11250.00,KENT COUNTY COUNCIL,                         ,LEISURE & OPEN SPACES,Maintenance - Grounds,Cultural and Related Services
Swale Borough Council,29UM,24/02/2016,1138969,4029.54,KENT COUNTY COUNCIL (KCS),                         ,PROPERTY SERVICES,Gas,Corporate & Democratic Core
Swale Borough Council,29UM,24/02/2016,1138972,4682.82,KENT COUNTY COUNCIL (KCS),                         ,PROPERTY SERVICES,Electricity,Corporate & Democratic Core
Swale Borough Council,29UM,24/02/2016,1138975,250.00,KENT COUNTY COUNCIL (KCS),                         ,CONTRACT & PROCUREMENT,Waste and Recycling Promotion / Comm's Projects,Environmental and Regulatory Services
Swale Borough Council,29UM,24/02/2016,1138976,250.00,KENT COUNTY COUNCIL (KCS),                         ,CONTRACT & PROCUREMENT,Waste and Recycling Promotion / Comm's Projects,Environmental and Regulatory Services
Swale Borough Council,29UM,24/02/2016,1138977,250.00,KENT COUNTY COUNCIL (KCS),                         ,CONTRACT & PROCUREMENT,Waste and Recycling Promotion / Comm's Projects,Environmental and Regulatory Services
Swale Borough Council,29UM,24/02/2016,1138978,1000.00,KENT COUNTY COUNCIL (KCS),                         ,CONTRACT & PROCUREMENT,Waste and Recycling Promotion / Comm's Projects,Environmental and Regulatory Services
Swale Borough Council,29UM,24/02/2016,1139262,69.00,LAND REGISTRY - (DT),                         ,PROPERTY SERVICES,Fees - Land Registry,Trading Undertaking
Swale Borough Council,29UM,24/02/2016,1139262,138.00,LAND REGISTRY - (DT),                         ,REVENUE SERVICES,Fees - Land Registry,Central Services to the Public
Swale Borough Council,29UM,24/02/2016,1139262,6.00,LAND REGISTRY - (DT),                         ,PLANNING SERVICES,Fees - Land Registry,Planning and Development Services
Swale Borough Council,29UM,24/02/2016,1139262,66.00,LAND REGISTRY - (DT),                         ,PLANNING SERVICES,Fees - Land Registry,Planning and Development Services
Swale Borough Council,29UM,24/02/2016,1139262,6.00,LAND REGISTRY - (DT),                         ,PLANNING SERVICES,Fees - Land Registry,Planning and Development Services
Swale Borough Council,29UM,24/02/2016,1139262,12.00,LAND REGISTRY - (DT),                         ,ECONOMIC DEVELOPMENT,Fees - Land Registry,Planning and Development Services
Swale Borough Council,29UM,24/02/2016,1139262,-3.00,LAND REGISTRY - (DT),                         ,HOUSING SERVICES,Fees - Land Registry,Housing
Swale Borough Council,29UM,24/02/2016,1139262,3.00,LAND REGISTRY - (DT),                         ,HOUSING SERVICES,Fees - Land Registry,Housing
Swale Borough Council,29UM,24/02/2016,1139262,12.00,LAND REGISTRY - (DT),                         ,ENVIRONMENTAL RESPONSE TEAM,Fees - Land Registry,Internal Trading Cost Centres
Swale Borough Council,29UM,24/02/2016,1139262,24.00,LAND REGISTRY - (DT),                         ,PLANNING SERVICES,Fees - Land Registry,Internal Trading Cost Centres
Swale Borough Council,29UM,24/02/2016,1139262,18.00,LAND REGISTRY - (DT),                         ,LEISURE & OPEN SPACES,Fees - Land Registry,Internal Trading Cost Centres
Swale Borough Council,29UM,24/02/2016,1139262,31.00,LAND REGISTRY - (DT),                         ,LEISURE & OPEN SPACES,Fees - Land Registry,Cultural and Related Services
Swale Borough Council,29UM,24/02/2016,1139262,12.00,LAND REGISTRY - (DT),                         ,LEISURE & OPEN SPACES,Fees - Land Registry,Cultural and Related Services
Swale Borough Council,29UM,24/02/2016,1139262,12.00,LAND REGISTRY - (DT),                         ,LEISURE & OPEN SPACES,Fees - Land Registry,Cultural and Related Services
Swale Borough Council,29UM,24/02/2016,1139262,21.00,LAND REGISTRY - (DT),                         ,HOUSING SERVICES,Fees - Land Registry,Housing
Swale Borough Council,29UM,24/02/2016,1139262,65.00,LAND REGISTRY - (DT),                         ,HOUSING SERVICES,Fees - Land Registry,Housing
Swale Borough Council,29UM,24/02/2016,1139160,395.00,LARAC,                         ,CONTRACT & PROCUREMENT,Grants & Subscriptions,Internal Trading Cost Centres
Swale Borough Council,29UM,24/02/2016,1138825,4743.00,LILAC ESTATES,                         ,HOUSING SERVICES,B & B - Landlords Payments,Housing
Swale Borough Council,29UM,24/02/2016,1138826,3659.00,LILAC ESTATES,                         ,HOUSING SERVICES,B & B - Landlords Payments,Housing
Swale Borough Council,29UM,24/02/2016,1139056,852.11,LLOYDS BANK - (DT),                         ,FINANCIAL SERVICES,Bank Charges,Corporate & Democratic Core
Swale Borough Council,29UM,24/02/2016,1139266,921483.76,MAIDSTONE BOROUGH COUNCIL - DT,                         ,FINANCIAL SERVICES,Tariff to Gvt,Taxation and Non-Specific Grant Income
Swale Borough Council,29UM,24/02/2016,1139076,2249.41,MALRO HOMES LTD,                         ,FINANCIAL SERVICES,S106 Income Unapplied,Ledger/Suspense Codes
Swale Borough Council,29UM,24/02/2016,1139072,875.00,MEDWAY PUBLIC ADDRESS SERVICES,                         ,EMERGENCY PLANNING,Equipment Purchase,Central Services to the Public
Swale Borough Council,29UM,24/02/2016,1139062,1375.00,MIDLAND SOFTWARE LTD,1852206                  ,HUMAN RESOURCES,Computer Equipment & Materials,Internal Trading Cost Centres
Swale Borough Council,29UM,24/02/2016,1139200,328.53,OBSIDIAN SECURITY LTD.,                         ,PROPERTY SERVICES,Buildings Maintenance,Corporate & Democratic Core
Swale Borough Council,29UM,24/02/2016,1139241,677.78,PRECEPT CS LIMITED,07311462                 ,HOUSING SERVICES,Housing Renovation Grants,Not used in this Structure
Swale Borough Council,29UM,24/02/2016,1138858,795.00,REARDON PROPERTIES,                         ,HOUSING SERVICES,B & B - Landlords Payments,Housing
Swale Borough Council,29UM,24/02/2016,1138859,490.00,REARDON PROPERTIES,                         ,HOUSING SERVICES,B & B - Landlords Payments,Housing
Swale Borough Council,29UM,24/02/2016,1138970,490.00,REARDON PROPERTIES,                         ,HOUSING SERVICES,B & B - Landlords Payments,Housing
Swale Borough Council,29UM,24/02/2016,1138971,595.00,REARDON PROPERTIES,                         ,HOUSING SERVICES,B & B - Landlords Payments,Housing
Swale Borough Council,29UM,24/02/2016,1139099,490.00,REARDON PROPERTIES,                         ,HOUSING SERVICES,B & B - Landlords Payments,Housing
Swale Borough Council,29UM,24/02/2016,1139100,875.00,REARDON PROPERTIES,                         ,HOUSING SERVICES,B & B - Landlords Payments,Housing
Swale Borough Council,29UM,24/02/2016,1139177,875.00,REARDON PROPERTIES,                         ,HOUSING SERVICES,B & B - Landlords Payments,Housing
Swale Borough Council,29UM,24/02/2016,1139178,420.00,REARDON PROPERTIES,                         ,HOUSING SERVICES,B & B - Landlords Payments,Housing
Swale Borough Council,29UM,24/02/2016,1139161,295.00,RICS BUSINESS SERVICES LTD,                         ,PROPERTY SERVICES,"Books, Journals & e - resources",Internal Trading Cost Centres
Swale Borough Council,29UM,24/02/2016,1138885,701.35,RSP RAIL TRAVEL ACCOUNT - (DT),                         ,FINANCIAL SERVICES,Travel Warrants (Staff Travel),Internal Trading Cost Centres
Swale Borough Council,29UM,24/02/2016,1138879,9036.92,SERCO LEISURE OPERATING LIMITED,04687478                 ,LEISURE & OPEN SPACES,Procurement Contracts Only,Cultural and Related Services
Swale Borough Council,29UM,24/02/2016,1139011,1216.92,SOUTH EAST WATER,2679874                  ,CONTRACT & PROCUREMENT,Water - Metered,Environmental and Regulatory Services
Swale Borough Council,29UM,24/02/2016,1139011,-192.46,SOUTH EAST WATER,2679874                  ,CONTRACT & PROCUREMENT,Water - Metered,Environmental and Regulatory Services
Swale Borough Council,29UM,24/02/2016,1139079,1484.71,SOUTHERN WATER SERVICES LIMITED,2366670                  ,CONTRACT & PROCUREMENT,Water - Metered,Environmental and Regulatory Services
Swale Borough Council,29UM,24/02/2016,1139173,1848.91,SOUTHERN WATER SERVICES LIMITED,2366670                  ,CONTRACT & PROCUREMENT,Water - Metered,Environmental and Regulatory Services
Swale Borough Council,29UM,24/02/2016,1138880,11829.38,SWALE COMMUNITY LEISURE LIMITED,31132R                   ,LEISURE & OPEN SPACES,Procurement Contracts Only,Cultural and Related Services
Swale Borough Council,29UM,24/02/2016,1138881,4700.00,SWALE COMMUNITY LEISURE LIMITED,31132R                   ,LEISURE & OPEN SPACES,Procurement Contracts Only,Cultural and Related Services
Swale Borough Council,29UM,24/02/2016,1138882,4436.68,SWALE COMMUNITY LEISURE LIMITED,31132R                   ,LEISURE & OPEN SPACES,Procurement Contracts Only,Cultural and Related Services
Swale Borough Council,29UM,24/02/2016,1139054,3225.00,TAYLOR BROTHERS LTD,                         ,LEISURE & OPEN SPACES,Maintenance - Grounds,Cultural and Related Services
Swale Borough Council,29UM,24/02/2016,1139156,1506.75,VENN GROUP LIMITED,                         ,MKIP LEGAL SERVICES,Agency/Contract Staff,Internal Trading Cost Centres
Swale Borough Council,29UM,24/02/2016,1139157,1137.75,VENN GROUP LIMITED,                         ,MKIP LEGAL SERVICES,Agency/Contract Staff,Internal Trading Cost Centres
Swale Borough Council,29UM,24/02/2016,1139083,650.00,WEALD WOODSCAPES LTD,8028446                  ,LEISURE & OPEN SPACES,Maintenance - Grounds,Cultural and Related Services
Swale Borough Council,29UM,24/02/2016,1139084,1500.00,WEALD WOODSCAPES LTD,8028446                  ,LEISURE & OPEN SPACES,Maintenance - Grounds,Cultural and Related Services
Swale Borough Council,29UM,24/02/2016,1139015,480.00,WILLOW TREE HOME SOLUTIONS LTD,                         ,HOUSING SERVICES,Staying Put small repairs (contractors),Housing
Swale Borough Council,29UM,24/02/2016,1139243,4222.80,WILLOW TREE HOME SOLUTIONS LTD,                         ,HOUSING SERVICES,Housing Renovation Grants,Not used in this Structure
Swale Borough Council,29UM,24/02/2016,1139244,6395.58,WILLOW TREE HOME SOLUTIONS LTD,                         ,HOUSING SERVICES,Housing Renovation Grants,Not used in this Structure
Swale Borough Council,29UM,24/02/2016,1139263,3621.86,WORLDPAY (DT),07316500                 ,REVENUE SERVICES,Commission Paid,Central Services to the Public
Swale Borough Council,29UM,24/02/2016,1139263,156.55,WORLDPAY (DT),07316500                 ,REVENUE SERVICES,Commission Paid,Central Services to the Public
Swale Borough Council,29UM,24/02/2016,1139263,20.96,WORLDPAY (DT),07316500                 ,REVENUE SERVICES,Commission Paid,Housing
Swale Borough Council,29UM,24/02/2016,1139263,19.40,WORLDPAY (DT),07316500                 ,EXCHEQUER,Commission Paid,Internal Trading Cost Centres
Swale Borough Council,29UM,24/02/2016,1139263,923.85,WORLDPAY (DT),07316500                 ,EXCHEQUER,Commission Paid,Internal Trading Cost Centres
Swale Borough Council,29UM,24/02/2016,1139263,365.22,WORLDPAY (DT),07316500                 ,EXCHEQUER,Commission Paid,Internal Trading Cost Centres
Swale Borough Council,29UM,24/02/2016,1139263,21.99,WORLDPAY (DT),07316500                 ,ICT,Fees And Services,Internal Trading Cost Centres
